Workbook

Sheet 7,7 на 2 нед.
D1: Акционерное общество
C2: Департамент продовольствия и социального питания г.Казани
I4: ст-ть 7,70
D5: ШКОЛЫ с. ПЕСТРЕЦЫ
A8: 2- ая неделя
B10: Понедельник
A11: № Рецеп туры | B11: Наименование блюд | E11: Выход | F11: Белки | G11: Жиры | H11: Углев. | I11: Ккал
B12: Завтрак
A13: Сб.,М:ДеЛи,плюс2015рец.№202 | B13: Макаронные отварные с маслом | E13: 150 | F13: 5.64 | G13: 4.47 | H13: 35.95 | I13: 206.85
A14: 684,685/2004 | B14: Чай с сахаром | E14: 200/15 | H14: 14.97 | I14: 59.85
B15: Хлеб сельский | E15: 20 | F15: 1.8 | G15: 0.3 | H15: 9.5 | I15: 56.00
B16: Итого: | F16: =SUM(F14:F14) -> 0.00 | G16: =SUM(G14:G14) -> 0.00 | H16: =SUM(H14:H14) -> 15.0 | I16: =SUM(I14:I14) -> 60
B19: Вторник
A20: № Рецеп туры | B20: Наименование блюд | E20: Выход | F20: Белки | G20: Жиры | H20: Углев. | I20: Ккал
B21: Завтрак
A22: Сб.,М:ДеЛи,плюс2015рец.№199 | B22: Гороховое пюре с маслом | E22: 150/5 | F22: 17.3 | G22: 4.8 | H22: 36.1 | I22: 257.30
A23: 684,685/2004 | B23: Чай с сахаром | E23: 200/15 | H23: 14.97 | I23: 59.85
B24: Хлеб белый 1с | E24: 27 | F24: 2.05 | G24: 0.22 | H24: 13.28 | I24: 63.00
B25: Итого: | F25: =SUM(F22:F24) -> 19.34 | G25: =SUM(G22:G24) -> 5.05 | H25: =SUM(H22:H24) -> 64.37 | I25: =SUM(I22:I24) -> 380.15
B30: Среда
A31: № Рецеп туры | B31: Наименование блюд | E31: Выход | F31: Белки | G31: Жиры | H31: Углев. | I31: Ккал
B32: Завтрак
A33: Сб.,М:ДеЛи,плюс2015рец.№303 | B33: Каша гречневая вязкая с маслом | E33: 150 | F33: 3.50 | G33: 4.64 | H33: 22.03 | I33: 143.90
A34: 684,685/2004 | B34: Чай с сахаром | E34: 200/15 | H34: 14.97 | I34: 59.85
B35: Хлеб сельский | E35: 20 | F35: 1.8 | G35: 0.3 | H35: 9.5 | I35: 56.00
B36: Итого: | F36: =SUM(F32:F35) -> 5.30 | G36: =SUM(G32:G35) -> 4.94 | H36: =SUM(H32:H35) -> 46.50 | I36: =SUM(I32:I35) -> 259.75
B40: Четверг
A41: № Рецеп туры | B41: Наименование блюд | E41: Выход | F41: Белки | G41: Жиры | H41: Углев. | I41: Ккал
B42: Завтрак
A43: Сб.,М:ДеЛи,плюс2015рец.№303 | B43: Каша рисовая вязкая с маслом | E43: 150 | F43: 2.30 | G43: 4.13 | H43: 23.94 | I43: 142.26
A44: 684,685/2004 | B44: Чай с сахаром | E44: 200/15 | H44: 14.97 | I44: 59.85
B45: Хлеб белый 1с | E45: 29 | F45: 2.2 | G45: 0.23 | H45: 14.27 | I45: 68.00
B46: Итого: | F46: =SUM(F43:F45) -> 4.5 | G46: =SUM(G43:G45) -> 4.36 | H46: =SUM(H43:H45) -> 53.2 | I46: =SUM(I43:I45) -> 270
B50: Пятница
A51: № Рецеп туры | B51: Наименование блюд | E51: Выход | F51: Белки | G51: Жиры | H51: Углев. | I51: Ккал
B52: Завтрак
A53: Сб.,М:ДеЛи,плюс2015рец.№303 | B53: Каша пшенная вязкая с маслом | E53: 160 | F53: 4.51 | G53: 5.34 | H53: 25.85 | I53: 169.75
A54: 684,685/2004 | B54: Чай с сахаром | E54: 200/15 | H54: 14.97 | I54: 59.85
B55: Хлеб белый 1с | E55: 38 | F55: 2.89 | G55: 0.3 | H55: 18.7 | I55: 89.00
B56: Итого: | F56: =SUM(F53:F55) -> 7.40 | G56: =SUM(G53:G55) -> 5.64 | H56: =SUM(H53:H55) -> 59.52 | I56: =SUM(I53:I55) -> 318.60
B59: Суббота
A60: № Рецеп туры | B60: Наименование блюд | E60: Выход | F60: Белки | G60: Жиры | H60: Углев. | I60: Ккал
B61: Завтрак
A62: Сб.,М:ДеЛи,плюс2015рец.№202 | B62: Спагетти отварные с маслом | E62: 150 | F62: 5.64 | G62: 4.47 | H62: 35.95 | I62: 206.85
A63: 684,685/2004 | B63: Чай с сахаром | E63: 200/15 | H63: 14.97 | I63: 59.85
B64: Хлеб сельский | E64: 20 | F64: 1.8 | G64: 0.3 | H64: 9.5 | I64: 56.00
B65: Итого: | F65: =SUM(F63:F63) -> 0.00 | G65: =SUM(G63:G63) -> 0.00 | H65: =SUM(H63:H63) -> 15.0 | I65: =SUM(I63:I63) -> 60
D68: Начальник производственного отдела:
D69: Зав. производством:
D70: Калькулятор:

Sheet 7,70 отрегул. (hidden)
